bitfinex-derivatives/quotes_BTCF0:USTF0_20250718
["timestamp","ask_amount","ask_price","bid_price","bid_amount"]
[1752846433737,0.08662,118890.0,118880.0,1.67017044]
[1752846433938,0.2800757,118890.0,118880.0,1.21216566]
[1752846434242,0.2800757,118890.0,118880.0,1.171061]
[1752846434445,0.11196,118890.0,118880.0,0.85132566]
[1752846434644,0.10378,118890.0,118880.0,1.03193044]
[1752846434843,0.10378,118890.0,118880.0,1.62465458]
[1752846435036,0.10378,118890.0,118880.0,0.98673458]
[1752846435234,0.10378,118890.0,118880.0,1.03180388]
[1752846435438,0.10378,118890.0,118880.0,1.66968388]
[1752846436039,0.04467,118890.0,118880.0,1.66968388]
[1752846436241,0.008,118890.0,118880.0,1.66968388]
[1752846436843,0.09162,118890.0,118880.0,1.2118791]
[1752846437045,0.2597357,118890.0,118880.0,1.50155408]
[1752846437245,0.2768957,118890.0,118880.0,1.0437493]
[1752846437447,0.10878,118890.0,118880.0,1.50155408]
[1752846437643,0.10878,118890.0,118880.0,1.66968388]
[1752846437837,0.2768957,118890.0,118880.0,1.50119408]
[1752846438035,0.2768957,118890.0,118880.0,0.86367408]
[1752846438342,0.3428757,118890.0,118880.0,1.07336426]
[1752846438745,0.3428757,118890.0,118880.0,0.71256426]
[1752846438948,0.3428757,118890.0,118880.0,1.12529974]
[1752846439143,0.3135157,118890.0,118880.0,1.12529974]
[1752846439336,0.3135157,118890.0,118880.0,1.31593286]
[1752846439538,0.3135157,118890.0,118880.0,1.29342954]
[1752846439742,0.3135157,118890.0,118880.0,1.65402954]
[1752846440047,0.11696,118890.0,118880.0,1.65402954]
[1752846440449,0.10878,118890.0,118880.0,1.65402954]
[1752846440649,0.2768957,118890.0,118880.0,1.65402954]
[1752846441145,0.2768957,118890.0,118880.0,1.67652572]
[1752846441353,0.09162,118890.0,118880.0,1.67652572]
[1752846441554,0.09162,118890.0,118880.0,1.21872094]
[1752846441555,0.2597357,118890.0,118880.0,1.21872094]
[1752846441747,0.2854457,118890.0,118880.0,1.50839592]
[1752846441947,0.2854457,118890.0,118880.0,1.47838096]
[1752846442154,0.2854457,118890.0,118880.0,1.64651076]
[1752846443257,0.2854457,118890.0,118880.0,1.47838096]
[1752846443447,0.2854457,118890.0,118880.0,1.02057618]
[1752846443648,0.2854457,118890.0,118880.0,1.02025618]
[1752846443852,0.2854457,118890.0,118880.0,1.47794096]
[1752846444048,0.2854457,118890.0,118880.0,0.84110096]
[1752846444354,0.3412357,118890.0,118880.0,1.11706096]
[1752846444549,0.3412357,118890.0,118880.0,1.28519076]
[1752846444950,0.3412357,118890.0,118880.0,1.64599076]
[1752846445953,0.3412357,118890.0,118880.0,0.65905618]
[1752846446348,0.7020357,118890.0,118880.0,0.02249618]
[1752846446548,0.3338098,118880.0,118870.0,0.63648]
[1752846446749,1.15241458,118880.0,118870.0,0.63648]
[1752846446949,0.3338523,118850.0,118840.0,1.09657496]
[1752846447145,0.3338523,118850.0,118840.0,1.2347464]
[1752846447350,0.3338523,118850.0,118840.0,1.8711864]
[1752846447547,0.16568,118850.0,118840.0,2.35900614]
[1752846447957,0.16568,118850.0,118840.0,2.71980614]
[1752846448157,0.16568,118850.0,118840.0,2.08336614]
[1752846448362,0.3338523,118850.0,118840.0,2.71968614]
[1752846449857,0.3338523,118850.0,118840.0,2.09369496]
[1752846450061,0.3338523,118850.0,118840.0,2.55149974]
[1752846450561,0.3338523,118850.0,118840.0,2.09369496]
[1752846450750,0.3338523,118850.0,118840.0,2.26188136]
[1752846451157,0.3338523,118850.0,118840.0,2.09369496]
[1752846451863,0.3338523,118850.0,118840.0,2.26172136]
[1752846452160,0.6946523,118850.0,118840.0,0.66617496]
[1752846452458,0.3338523,118850.0,118840.0,0.63616]
[1752846454567,0.3338523,118850.0,118840.0,0.63716]
[1752846454768,0.6946523,118850.0,118840.0,0.63716]
[1752846455971,0.67986604,118850.0,118840.0,0.63716]
[1752846458269,0.67986604,118850.0,118840.0,0.8053464]
[1752846459169,0.67986604,118850.0,118840.0,0.63716]
[1752846460570,0.31906604,118850.0,118840.0,0.63716]
[1752846461273,0.31906604,118850.0,118840.0,0.1691864]
[1752846461475,0.31906604,118850.0,118840.0,1.67264614]
[1752846461667,0.31906604,118850.0,118840.0,1.31184614]
[1752846462769,0.31906604,118850.0,118840.0,0.65584]
[1752846462972,0.31906604,118850.0,118840.0,0.67828496]
[1752846463565,0.31906604,118850.0,118840.0,0.84647136]
[1752846464570,0.31906604,118850.0,118840.0,0.67828496]
[1752846465262,0.31906604,118850.0,118840.0,0.84647136]
[1752846465466,0.10989,118850.0,118840.0,1.03748614]
[1752846465671,0.08418,118850.0,118840.0,1.67240614]
[1752846465866,0.04096,118850.0,118840.0,1.67240614]
[1752846466267,0.10123,118860.0,118850.0,0.1681723]
[1752846466464,0.04096,118860.0,118850.0,0.67567204]
[1752846466669,0.04096,118860.0,118850.0,1.05152638]
[1752846466872,0.228414,118870.0,118860.0,0.1802681]
[1752846467074,0.269374,118870.0,118860.0,1.71624979]
[1752846468075,0.269374,118870.0,118860.0,1.51799408]
[1752846468376,0.278034,118870.0,118860.0,1.51799408]
[1752846468777,0.278034,118870.0,118860.0,1.68615218]
[1752846469077,0.278034,118870.0,118860.0,1.51799408]
[1752846469277,0.280034,118870.0,118860.0,1.68615218]
[1752846469472,0.280034,118870.0,118860.0,1.51799408]
[1752846469672,0.281034,118870.0,118860.0,1.51799408]
[1752846469873,0.281034,118870.0,118860.0,1.68615218]
[1752846470074,0.272374,118870.0,118860.0,1.68615218]
[1752846472376,0.10423,118870.0,118860.0,1.68615218]
[1752846472577,0.272374,118870.0,118860.0,1.68615218]
[1752846473973,0.003,118870.0,118860.0,1.68615218]
[1752846474174,0.003,118870.0,118860.0,2.70736288]
[1752846474379,0.07974,118880.0,118870.0,0.177714]
[1752846474580,0.07974,118880.0,118870.0,1.05662969]
[1752846474975,0.09634,118880.0,118870.0,1.05662969]
[1752846475375,0.07974,118880.0,118870.0,1.05662969]
[1752846475679,0.07974,118880.0,118870.0,0.59882491]
[1752846475979,0.07974,118880.0,118870.0,1.05662969]
[1752846476169,0.07974,118880.0,118870.0,1.06497958]
[1752846477179,0.07974,118880.0,118870.0,1.00466867]
[1752846477974,0.07974,118880.0,118870.0,1.07166232]
[1752846478481,0.07974,118880.0,118870.0,1.00566867]
[1752846478876,0.07974,118880.0,118870.0,1.06597958]
[1752846479179,0.07974,118880.0,118870.0,1.00566867]
[1752846479881,0.07974,118880.0,118870.0,0.54786389]
[1752846480081,0.2478698,118880.0,118870.0,1.00566867]
[1752846480285,0.2644698,118880.0,118870.0,1.00566867]
[1752846480480,0.2644698,118880.0,118870.0,1.63878867]
[1752846480678,0.2644698,118880.0,118870.0,0.99731878]
[1752846480881,0.2644698,118880.0,118870.0,0.05210411]
[1752846480882,0.3256998,118880.0,118870.0,0.05210411]
[1752846481182,0.3256998,118880.0,118870.0,0.68518411]
[1752846481480,0.3256998,118880.0,118870.0,1.60321277]
[1752846481680,0.3256998,118880.0,118870.0,1.60689277]
[1752846481982,0.3256998,118880.0,118870.0,1.43874877]
[1752846482183,0.3256998,118880.0,118870.0,1.43506877]
[1752846482383,0.3256998,118880.0,118870.0,1.07426877]
[1752846482979,0.3256998,118880.0,118870.0,0.68518411]
[1752846483782,0.3256998,118880.0,118870.0,0.68506411]
[1752846484378,0.3256998,118880.0,118870.0,0.71520393]
[1752846484581,0.3256998,118880.0,118870.0,0.04621411]
[1752846484786,0.3256998,118880.0,118870.0,0.7090339]
[1752846484978,0.3256998,118880.0,118870.0,0.7089939]
[1752846485487,0.3256998,118880.0,118870.0,0.0763539]
[1752846485681,0.3256998,118880.0,118870.0,0.66369979]
[1752846486083,0.3256998,118880.0,118870.0,0.83769379]
[1752846486882,0.3256998,118880.0,118870.0,0.8829079]
[1752846487584,0.3256998,118880.0,118870.0,1.2437079]
[1752846487790,0.3256998,118880.0,118870.0,1.67310731]
[1752846488083,0.3256998,118880.0,118870.0,1.31230731]
[1752846488588,0.3256998,118880.0,118870.0,1.21724811]
[1752846488791,0.3256998,118880.0,118870.0,1.67310731]
[1752846491490,0.09634,118880.0,118870.0,1.67310731]
[1752846491691,0.2644698,118880.0,118870.0,1.67316029]
[1752846492089,0.2727898,118880.0,118870.0,1.31236029]
[1752846492391,0.2991998,118880.0,118870.0,1.31236029]
[1752846492591,0.3256998,118880.0,118870.0,0.85650109]
[1752846493893,0.3256998,118880.0,118870.0,0.05215709]
[1752846494089,0.3256998,118880.0,118870.0,0.68391709]
[1752846494593,0.3256998,118880.0,118870.0,0.85206109]
[1752846495195,0.3256998,118880.0,118870.0,0.806794]
[1752846495495,0.3256998,118880.0,118870.0,1.6234532]
[1752846495691,0.09634,118880.0,118870.0,1.6259832]
[1752846495890,0.03982,118880.0,118870.0,1.68629411]
[1752846496097,0.26446,118890.0,118880.0,0.1721698]
[1752846496395,0.03982,118890.0,118880.0,0.991359]
[1752846496597,0.03982,118890.0,118880.0,0.5354998]
[1752846496786,0.03982,118890.0,118880.0,0.991359]
[1752846496989,0.07974,118890.0,118880.0,0.991359]
[1752846498095,0.07974,118890.0,118880.0,0.5354998]
[1752846498397,0.07974,118890.0,118880.0,1.051804]
[1752846498594,0.3256857,118890.0,118880.0,0.067015]
[1752846498800,0.3256857,118890.0,118880.0,0.064485]
[1752846499094,0.2727757,118890.0,118880.0,1.683124]
[1752846499299,0.2727757,118890.0,118880.0,1.322324]
[1752846499499,0.2727757,118890.0,118880.0,0.8664648]
[1752846499700,0.2727757,118890.0,118880.0,0.698335]
[1752846500005,0.3256857,118890.0,118880.0,0.695805]
[1752846500195,0.3256857,118890.0,118880.0,0.064485]
[1752846500401,0.6864857,118890.0,118880.0,0.00404]
[1752846500699,0.3256998,118880.0,118870.0,0.425285]
[1752846500994,0.3256998,118880.0,118870.0,0.064485]
[1752846501192,0.202534,118870.0,118860.0,1.6556816]
[1752846501497,0.327574,118870.0,118860.0,2.118525]
[1752846501694,0.327574,118870.0,118860.0,2.2262381]
[1752846502900,0.327574,118870.0,118860.0,2.05808]
[1752846503195,0.327574,118870.0,118860.0,1.6566831]
[1752846503697,0.327574,118870.0,118860.0,2.2885231]
[1752846503903,0.327574,118870.0,118860.0,1.128725]
[1752846504096,0.688374,118870.0,118860.0,1.69908]
[1752846504296,0.688374,118870.0,118860.0,0.67814838]
[1752846504899,0.688374,118870.0,118860.0,0.70837484]
[1752846506002,0.688374,118870.0,118860.0,0.87653294]
[1752846506198,0.688374,118870.0,118860.0,0.83118456]
[1752846508803,0.327574,118870.0,118860.0,0.83118456]
[1752846509499,0.327574,118870.0,118860.0,0.83474456]
[1752846510001,0.327574,118870.0,118860.0,1.65140376]
[1752846510206,0.327574,118870.0,118860.0,1.29283376]
[1752846510706,0.327574,118870.0,118860.0,0.88009294]
[1752846510896,0.327574,118870.0,118860.0,0.83474446]
[1752846511094,0.688374,118870.0,118860.0,0.03578646]
[1752846511300,0.327574,118870.0,118860.0,0.84582638]
[1752846511701,0.688374,118870.0,118860.0,0.84582638]
[1752846511902,0.688374,118870.0,118860.0,0.83067702]
[1752846512406,0.688374,118870.0,118860.0,0.66251902]
[1752846513703,0.70533877,118870.0,118860.0,0.66251902]
[1752846514209,0.70533877,118870.0,118860.0,0.66223902]
[1752846515002,0.70533877,118870.0,118860.0,0.83039702]
[1752846515505,0.70533877,118870.0,118860.0,0.66223902]
[1752846515713,0.70533877,118870.0,118860.0,0.83039702]
[1752846516404,0.688374,118870.0,118860.0,0.83395702]
[1752846516808,0.688374,118870.0,118860.0,1.28981622]
[1752846517009,0.09759,118870.0,118860.0,1.65284622]
[1752846517312,0.2657338,118870.0,118860.0,1.66799558]
[1752846518412,0.2657338,118870.0,118860.0,1.03795558]
[1752846518608,0.2739438,118870.0,118860.0,1.21182739]
[1752846518809,0.2739438,118870.0,118860.0,1.6224072]
[1752846519007,0.2739438,118870.0,118860.0,1.166548]
[1752846519309,0.2739438,118870.0,118860.0,1.6224072]
[1752846519509,0.2739438,118870.0,118860.0,1.166548]
[1752846520313,0.2739438,118870.0,118860.0,1.6224072]
[1752846522611,0.2657338,118870.0,118860.0,1.6828522]
[1752846522807,0.042,118870.0,118860.0,1.6828522]
[1752846523012,0.2237203,118880.0,118870.0,0.1739338]
[1752846523013,0.2657197,118880.0,118870.0,0.1739338]
[1752846523213,0.2499797,118880.0,118870.0,0.96893829]
[1752846523415,0.08185,118880.0,118870.0,0.96893829]
[1752846524917,0.2499797,118880.0,118870.0,1.03575229]
[1752846525914,0.08185,118880.0,118870.0,1.03575229]
[1752846526214,0.08185,118880.0,118870.0,0.99047202]
[1752846527915,0.08185,118880.0,118870.0,1.05091702]
[1752846528118,0.042,118880.0,118870.0,1.05091702]
[1752846528416,0.2657162,118890.0,118880.0,0.1739197]
[1752846528716,0.2657162,118890.0,118880.0,1.61941792]
[1752846530117,0.2667162,118890.0,118880.0,1.61941792]
[1752846530416,0.2667162,118890.0,118880.0,1.67986292]
[1752846530616,0.2667162,118890.0,118880.0,1.61941792]
[1752846530816,0.2667162,118890.0,118880.0,1.67986292]
[1752846531320,0.2667162,118890.0,118880.0,1.61941792]
[1752846532224,0.09859,118890.0,118880.0,1.61941792]
[1752846532515,0.09859,118890.0,118880.0,1.67986292]
[1752846532722,0.08285,118890.0,118880.0,1.61941792]
[1752846533120,0.08285,118890.0,118880.0,1.62801374]
[1752846533518,0.08285,118890.0,118880.0,1.68845874]
[1752846533718,0.043,118890.0,118880.0,1.68845874]
[1752846534118,0.001,118890.0,118880.0,1.68845874]
[1752846534916,0.001,118890.0,118880.0,1.68789874]
[1752846535314,0.00078751,118890.0,118880.0,1.68789874]
[1752846537530,4.751e-05,118890.0,118880.0,1.68789874]
[1752846537725,0.266059,118910.0,118900.0,0.1681014]
[1752846537924,0.249679,118910.0,118900.0,1.68825082]
[1752846538331,0.266059,118910.0,118900.0,1.68825082]
[1752846538826,0.08158,118910.0,118900.0,1.65808634]
[1752846539032,0.09796,118920.0,118910.0,0.1680873]
[1752846539233,0.2660332,118920.0,118910.0,0.84669675]
[1752846539426,0.3289332,118920.0,118910.0,0.05277345]
[1752846539730,0.6897332,118920.0,118910.0,0.65819853]
[1752846540140,0.3289332,118920.0,118910.0,0.65819853]
[1752846540335,1.14547142,118920.0,118910.0,0.03015853]
[1752846540532,1.31365542,118920.0,118910.0,0.07540525]
[1752846540732,0.3289614,118900.0,118890.0,0.060445]
[1752846541038,0.6897614,118900.0,118890.0,0.688405]
[1752846541232,0.6897614,118900.0,118890.0,0.688365]
[1752846541433,1.14549962,118900.0,118890.0,0.62792]
[1752846541634,0.3289756,118890.0,118880.0,0.2285747]
[1752846541834,0.3289897,118880.0,118870.0,0.2285888]
[1752846542028,0.6897897,118880.0,118870.0,0.688325]
[1752846542231,0.6897897,118880.0,118870.0,0.8564688]
[1752846542540,0.3289897,118880.0,118870.0,0.8564688]
[1752846542837,0.6897897,118880.0,118870.0,0.7960238]
[1752846543540,0.3289897,118880.0,118870.0,0.7960238]
[1752846543746,0.3289897,118880.0,118870.0,0.7980238]
[1752846545038,0.75793014,118880.0,118870.0,0.7980238]
[1752846545438,0.39713014,118880.0,118870.0,0.7980238]
[1752846545635,0.39713014,118880.0,118870.0,0.7990238]
[1752846549741,0.2738297,118880.0,118870.0,1.61556202]
[1752846549942,0.2660897,118880.0,118870.0,1.61556202]
[1752846550131,0.3289897,118880.0,118870.0,0.7986238]
[1752846550335,0.3289897,118880.0,118870.0,0.003]
[1752846550635,0.1681721,118850.0,118840.0,0.060445]
[1752846550835,0.3290463,118840.0,118830.0,0.228639]
[1752846551040,0.3290463,118840.0,118830.0,0.168194]
[1752846551239,0.3290463,118840.0,118830.0,1.61217222]
[1752846551542,0.2661463,118840.0,118830.0,1.61217222]
[1752846551743,0.2661463,118840.0,118830.0,1.61213222]
[1752846553244,0.2661463,118840.0,118830.0,1.61413222]
[1752846555240,0.09796,118840.0,118830.0,1.61513222]
[1752846555642,0.2661463,118840.0,118830.0,1.61513222]
[1752846556041,0.09796,118840.0,118830.0,1.61513222]
[1752846556237,0.1845529,118850.0,118840.0,0.1681863]
[1752846556438,0.09796,118850.0,118840.0,1.00732031]
[1752846556847,0.2661321,118850.0,118840.0,1.00732031]
[1752846557046,0.09796,118850.0,118840.0,0.98472452]
[1752846557743,0.09796,118850.0,118840.0,0.98572452]
[1752846557941,0.09796,118850.0,118840.0,0.98672452]
[1752846559834,0.04094,118850.0,118840.0,0.98672452]
[1752846560741,0.04094,118850.0,118840.0,1.03190107]
[1752846561444,0.09603,118860.0,118850.0,0.1681721]
[1752846561745,0.09603,118860.0,118850.0,1.65692687]
[1752846562042,0.326718,118860.0,118850.0,0.40597655]
[1752846562247,0.3301194,118860.0,118850.0,0.7951321]
[1752846562947,0.2312521,118850.0,118840.0,0.70228505]
[1752846563142,0.3266821,118850.0,118840.0,0.57515185]
[1752846563339,0.3266821,118850.0,118840.0,1.20207185]
[1752846563746,0.3266821,118850.0,118840.0,1.1568953]
[1752846563947,0.3266821,118850.0,118840.0,1.1558953]
[1752846564148,0.3266821,118850.0,118840.0,1.1568953]
[1752846564546,0.3266821,118850.0,118840.0,1.20207185]
[1752846564852,0.3266821,118850.0,118840.0,1.20307185]
[1752846567053,0.3266821,118850.0,118840.0,1.59226992]
[1752846569249,0.09543,118850.0,118840.0,1.59226992]
[1752846569554,0.09543,118860.0,118850.0,0.1681721]
[1752846569756,0.09543,118860.0,118850.0,0.96342141]
[1752846570956,0.263588,118860.0,118850.0,1.03011869]
[1752846572251,0.263588,118860.0,118850.0,0.98486745]
[1752846572452,0.09543,118860.0,118850.0,0.98486745]
[1752846573357,0.09543,118860.0,118850.0,1.04531245]
[1752846574155,0.08008,118860.0,118850.0,0.5894171]
[1752846574357,0.08008,118860.0,118850.0,1.04531245]
[1752846574658,0.26167106,118870.0,118860.0,0.168158]
[1752846574856,0.26167106,118870.0,118860.0,1.65647786]
[1752846575059,0.09543,118870.0,118860.0,1.67161835]
[1752846575354,0.2635738,118870.0,118860.0,1.67161835]
[1752846575554,0.09543,118870.0,118860.0,1.67161835]
[1752846575956,0.2655738,118870.0,118860.0,1.61117335]
[1752846576658,0.08208,118870.0,118860.0,1.67161835]
[1752846576858,0.04201,118870.0,118860.0,1.67161835]
[1752846577354,0.003,118870.0,118860.0,1.67161835]
[1752846577759,0.002,118870.0,118860.0,1.68085663]
[1752846578156,0.002,118870.0,118860.0,1.22496128]
[1752846578356,0.2502238,118870.0,118860.0,1.68085663]
[1752846578550,0.08008,118870.0,118860.0,1.68185663]
[1752846579759,0.2635738,118870.0,118860.0,1.68185663]
[1752846580657,0.2635738,118870.0,118860.0,1.05553663]
[1752846580861,0.3266538,118870.0,118860.0,1.217443]
[1752846581764,0.3266538,118870.0,118860.0,1.156878]
[1752846581960,0.3266538,118870.0,118860.0,0.3628]
[1752846582165,0.3266538,118870.0,118860.0,1.049165]
[1752846582367,0.6874538,118870.0,118860.0,0.6732173]
[1752846583268,0.6874538,118870.0,118860.0,0.8413753]
[1752846583761,0.3266538,118870.0,118860.0,0.8413753]
[1752846585164,0.6874538,118870.0,118860.0,0.6732173]
[1752846585368,1.14334915,118870.0,118860.0,0.6732173]
[1752846585668,1.14334915,118870.0,118860.0,0.70326642]
[1752846585865,0.6874538,118870.0,118860.0,0.65796912]
[1752846586065,1.14334915,118870.0,118860.0,0.65796912]
[1752846586265,1.14334915,118870.0,118860.0,0.68062754]
[1752846586565,1.14334915,118870.0,118860.0,0.84878554]
[1752846586765,0.6874538,118870.0,118860.0,0.68062754]
[1752846586961,0.3266538,118870.0,118860.0,0.84878544]
[1752846587272,0.6874538,118870.0,118860.0,0.84878544]
[1752846587471,0.6874538,118870.0,118860.0,0.68062754]
[1752846588267,0.6874538,118870.0,118860.0,0.68062864]
[1752846588664,0.6874538,118870.0,118860.0,0.84878664]
[1752846588871,0.6874538,118870.0,118860.0,0.68062864]
[1752846589468,1.14334915,118870.0,118860.0,0.68062864]
[1752846589668,1.14334915,118870.0,118860.0,0.84878664]
[1752846589864,0.3266538,118870.0,118860.0,0.84878664]
[1752846590368,0.3266538,118870.0,118860.0,0.68062864]
[1752846590568,0.6874538,118870.0,118860.0,0.68062864]
[1752846590769,0.3266538,118870.0,118860.0,0.68062864]
[1752846590971,0.71582923,118870.0,118860.0,0.68062864]
[1752846591769,0.6874538,118870.0,118860.0,0.68062864]
[1752846591963,1.07662923,118870.0,118860.0,0.84878664]
[1752846592669,0.71582923,118870.0,118860.0,0.84878664]
[1752846592971,1.07662923,118870.0,118860.0,0.68062864]
[1752846593172,1.07662923,118870.0,118860.0,0.84878654]
[1752846594271,0.6874538,118870.0,118860.0,0.84878654]
[1752846594473,1.07662923,118870.0,118860.0,0.84878654]
[1752846594770,1.07662923,118870.0,118860.0,0.68062864]
[1752846594974,1.07662923,118870.0,118860.0,0.65796912]
[1752846596175,0.6874538,118870.0,118860.0,0.6806278]
[1752846596364,1.07662923,118870.0,118860.0,0.65041868]
[1752846599075,0.6874538,118870.0,118860.0,0.65041868]
[1752846599376,1.07662923,118870.0,118860.0,0.65041868]
[1752846599880,0.310968,118860.0,118850.0,0.03020912]
[1752846600174,1.07721343,118860.0,118850.0,0.00832562]
[1752846600375,0.3272521,118850.0,118840.0,0.0452973]
[1752846600579,1.87055553,118850.0,118840.0,0.0452973]
[1752846600880,0.2280363,118840.0,118830.0,0.6703773]
[1752846601176,0.3272663,118840.0,118830.0,0.6703773]
[1752846601376,0.3272663,118840.0,118830.0,0.8385777]
[1752846601577,0.39577916,118840.0,118830.0,0.8385777]
[1752846601871,0.39577916,118840.0,118830.0,1.18245583]
[1752846602077,0.39577916,118840.0,118830.0,0.8012804]
[1752846602279,0.39577916,118840.0,118830.0,0.63308]
[1752846602472,0.39577916,118840.0,118830.0,0.8012804]
[1752846604974,0.39577916,118840.0,118830.0,0.7982804]
[1752846605477,0.39577916,118840.0,118830.0,0.7952804]
[1752846606471,0.39577916,118840.0,118830.0,0.55937583]
[1752846606773,0.33592916,118840.0,118830.0,1.59035313]
[1752846607879,0.39577916,118840.0,118830.0,1.59035313]
[1752846608776,0.39577916,118840.0,118830.0,0.96547313]
[1752846609077,0.33592916,118840.0,118830.0,1.59031313]
[1752846609779,0.39577916,118840.0,118830.0,1.59031313]
[1752846610073,1.14575459,118840.0,118830.0,0.6720173]
[1752846610277,1.50655459,118840.0,118830.0,0.62672]
[1752846610680,0.1682004,118830.0,118820.0,0.0452973]
[1752846610872,0.1682004,118830.0,118800.0,7.141e-05]
[1752846610873,0.3273087,118810.0,118800.0,7.141e-05]
[1752846611070,1.08568282,118810.0,118800.0,7.141e-05]
[1752846611678,1.07728413,118810.0,118800.0,0.16831431]
[1752846612070,1.07728413,118810.0,118800.0,0.17231431]
[1752846612478,1.07728413,118810.0,118800.0,0.79687431]
[1752846612780,1.07728413,118810.0,118800.0,0.62863141]
[1752846612979,0.6881087,118810.0,118800.0,0.79687431]
[1752846614478,0.6881087,118810.0,118800.0,0.79987431]
[1752846618781,0.6881087,118810.0,118800.0,0.63163141]
[1752846619981,0.6881087,118810.0,118800.0,0.79987431]
[1752846620680,0.3273087,118810.0,118800.0,0.79987431]
[1752846621883,0.6881087,118810.0,118800.0,0.79987431]
[1752846622083,0.6881087,118810.0,118800.0,0.63163141]
[1752846623785,0.6881087,118810.0,118800.0,0.79987431]
[1752846624087,0.6881087,118810.0,118800.0,0.63163141]
[1752846624286,0.6881087,118810.0,118800.0,0.00707141]
[1752846624287,1.14459363,118810.0,118800.0,0.00707141]
[1752846624784,1.76875363,118810.0,118800.0,0.007]
[1752846625982,1.76875363,118810.0,118800.0,0.006]
[1752846626982,1.3122687,118810.0,118800.0,0.006]
[1752846627181,1.76875363,118810.0,118800.0,0.006]
[1752846627688,1.76875363,118810.0,118800.0,0.002]
[1752846627885,1.76875363,118810.0,118780.0,0.8765549]
[1752846627886,0.2313071,118790.0,118780.0,0.8765549]
[1752846628087,0.3292671,118790.0,118780.0,0.8765549]
[1752846628883,0.3292671,118790.0,118780.0,0.2103276]
[1752846629088,0.3292671,118790.0,118780.0,0.1702626]
[1752846630287,0.3292671,118790.0,118780.0,0.20042317]
[1752846630889,0.3292671,118790.0,118780.0,0.20242317]
[1752846631090,0.3292671,118790.0,118780.0,0.56322317]
[1752846631385,0.3292671,118790.0,118780.0,1.68886521]
[1752846631386,0.168257,118790.0,118780.0,1.68886521]
[1752846631591,0.2519333,118800.0,118790.0,0.168257]
[1752846631790,0.2916833,118800.0,118790.0,1.01569972]
[1752846632091,0.2496217,118800.0,118790.0,1.01569972]
[1752846632386,0.2661946,118810.0,118800.0,0.1682429]
[1752846632585,0.2916624,118810.0,118800.0,0.55920265]
[1752846632794,0.2916624,118810.0,118800.0,1.01568758]
[1752846633198,0.3082524,118810.0,118800.0,1.01568758]
[1752846633488,0.08137,118810.0,118800.0,1.01568758]
[1752846633696,0.2495987,118810.0,118800.0,1.01568758]
[1752846633900,0.08137,118810.0,118800.0,1.03076494]
[1752846634091,0.2495987,118810.0,118800.0,1.03076494]
[1752846635201,0.2661887,118810.0,118800.0,0.57428001]
[1752846635401,0.2743987,118810.0,118800.0,0.57428001]
[1752846635702,0.09796,118810.0,118800.0,0.57428001]
[1752846635897,0.03975,118810.0,118800.0,1.03076494]
[1752846636102,0.3082397,118820.0,118810.0,0.1682287]
[1752846636293,0.3336853,118830.0,118820.0,0.1682146]
[1752846636496,0.2916331,118830.0,118820.0,0.98549953]
[1752846636701,0.2495704,118830.0,118820.0,1.01566937]
[1752846637002,0.08137,118830.0,118820.0,1.01566937]
[1752846637395,0.41876856,118840.0,118830.0,0.1682004]
[1752846637601,0.41876856,118840.0,118830.0,1.1526804]
[1752846638512,0.48181856,118840.0,118830.0,0.98448]
[1752846638996,0.48281856,118840.0,118830.0,1.1526804]
[1752846639198,0.84361856,118840.0,118830.0,0.62368]
[1752846639399,0.1682004,118830.0,118820.0,0.19837364]
[1752846639605,0.3292104,118830.0,118820.0,0.86718841]
[1752846639802,0.3292104,118830.0,118820.0,0.83701857]
[1752846640206,0.3292104,118830.0,118820.0,0.66881477]
[1752846640407,0.3292104,118830.0,118820.0,0.83702937]
[1752846640606,0.3292104,118830.0,118820.0,0.66881477]
[1752846640806,0.3292104,118830.0,118820.0,0.62356]
[1752846641110,0.3292104,118830.0,118820.0,0.7917746]
[1752846641310,0.3292104,118830.0,118820.0,0.83706889]
[1752846642608,0.3292104,118830.0,118820.0,0.86725767]
[1752846642797,0.3292104,118830.0,118820.0,0.83706889]
[1752846643303,0.3292104,118830.0,118820.0,0.86725373]
[1752846643912,0.3292104,118830.0,118820.0,0.82195944]
[1752846645404,0.3292104,118830.0,118820.0,1.18275944]
[1752846645607,0.2743704,118830.0,118820.0,1.22805373]
[1752846645808,0.2661604,118830.0,118820.0,1.68453866]
[1752846646105,0.03975,118830.0,118820.0,1.65435382]
[1752846646305,0.2079504,118830.0,118820.0,1.65435382]
[1752846646509,0.2079504,118830.0,118820.0,1.68452404]
[1752846646805,0.2661604,118830.0,118820.0,0.82194482]
[1752846647009,0.2661604,118830.0,118820.0,1.22803911]
[1752846647510,0.2661604,118830.0,118820.0,1.18274482]
[1752846648112,0.2661604,118830.0,118820.0,1.19122385]
[1752846649113,0.2661604,118830.0,118820.0,1.20634792]
[1752846649407,0.2661604,118830.0,118820.0,1.16105363]
[1752846649611,0.2661604,118830.0,118820.0,1.19121574]
[1752846650116,0.2661604,118830.0,118820.0,1.66283285]
[1752846650408,0.05821,118840.0,118830.0,0.1682004]
[1752846650610,0.3502335,118850.0,118840.0,0.1681862]
[1752846650814,0.2661451,118850.0,118840.0,1.60847113]
[1752846651117,0.3455014,118860.0,118850.0,0.1681721]
[1752846651412,0.3455014,118860.0,118850.0,0.98545703]
[1752846652009,0.09325,118860.0,118850.0,0.98545703]
[1752846652213,0.07761,118860.0,118850.0,0.98545703]
[1752846652516,0.245768,118860.0,118850.0,0.5289721]
[1752846653010,0.261408,118860.0,118850.0,0.5289721]
[1752846654207,0.265408,118860.0,118850.0,0.5289721]
[1752846654607,0.267408,118860.0,118850.0,0.5289721]
[1752846655310,0.265408,118860.0,118850.0,0.5289721]
[1752846656314,0.264408,118860.0,118850.0,0.5289721]
[1752846659113,0.04182,118860.0,118850.0,0.55912978]
[1752846659313,0.003,118860.0,118850.0,1.01561471]
[1752846659515,0.171158,118860.0,118850.0,1.01561471]
[1752846659717,0.264408,118860.0,118850.0,0.55912978]
[1752846660016,0.325228,118860.0,118850.0,0.55158079]
[1752846660413,0.325228,118860.0,118850.0,0.55912978]
[1752846660718,0.325228,118860.0,118850.0,1.17415142]
[1752846661114,0.78171293,118860.0,118850.0,1.00593932]
[1752846661313,0.325228,118860.0,118850.0,0.65267852]
[1752846661814,1.14251293,118860.0,118850.0,0.64510901]
[1752846662216,1.14251293,118860.0,118850.0,0.02262901]
[1752846663019,1.14251293,118860.0,118850.0,0.19080111]
[1752846663214,1.14251293,118860.0,118850.0,0.02262901]
[1752846663615,0.686028,118860.0,118850.0,0.19080111]
[1752846663819,1.14251293,118860.0,118850.0,0.19080111]
[1752846664221,0.686028,118860.0,118850.0,0.19080111]
[1752846664420,0.325228,118860.0,118850.0,0.22095963]
[1752846664618,0.325228,118860.0,118850.0,0.19833062]
[1752846665422,0.325228,118860.0,118850.0,0.55913062]